[Event "*** SCC Grand Prix: Titled Tuesday Blitz"]
[Site "Chess.com"]
[Date "2020.08.25"]
[Round "7"]
[White "lucachess49"]
[Black "alfiefischer77"]
[Result "1/2-1/2"]
[WhiteElo "2473"]
[BlackElo "2306"]
[TimeControl "180+1"]
[EndTime "11:21:29 PDT"]
[Termination "Game drawn - insufficient material"]

1. d4 {[%clk 0:03:00.6]} 1... Nf6 {[%clk 0:02:59.3]} 2. c4 {[%clk 0:03:01]} 2...
e6 {[%clk 0:02:59.6]} 3. Nc3 {[%clk 0:03:00.7]} 3... Bb4 {[%clk 0:03:00.1]} 4.
e3 {[%clk 0:03:00.9]} 4... c5 {[%clk 0:02:59.9]} 5. Ne2 {[%clk 0:03:00.7]} 5...
b6 {[%clk 0:02:59.3]} 6. a3 {[%clk 0:02:53.6]} 6... Ba5 {[%clk 0:02:58.7]} 7.
Bd2 {[%clk 0:02:53.3]} 7... Bb7 {[%clk 0:02:51.9]} 8. b4 {[%clk 0:02:51.1]} 8...
cxb4 {[%clk 0:02:51.7]} 9. Nb5 {[%clk 0:02:51]} 9... Qe7 {[%clk 0:02:25.4]} 10.
Nc7+ {[%clk 0:02:38.6]} 10... Kd8 {[%clk 0:02:24.8]} 11. Nxa8 {[%clk 0:02:39.2]}
11... Bxa8 {[%clk 0:02:24.2]} 12. Qb3 {[%clk 0:02:36]} 12... Nc6 {[%clk
0:02:05.3]} 13. axb4 {[%clk 0:02:29.3]} 13... Nxb4 {[%clk 0:02:02.2]} 14. Nc1
{[%clk 0:02:20.3]} 14... e5 {[%clk 0:01:42.5]} 15. Na2 {[%clk 0:02:05.5]} 15...
Nc6 {[%clk 0:01:20.4]} 16. Bxa5 {[%clk 0:02:01.7]} 16... Nxa5 {[%clk 0:00:48.2]}
17. Qb4 {[%clk 0:01:58.7]} 17... exd4 {[%clk 0:00:44.8]} 18. Qxe7+ {[%clk
0:01:56.9]} 18... Kxe7 {[%clk 0:00:45.7]} 19. exd4 {[%clk 0:01:56.2]} 19... Re8
{[%clk 0:00:45.5]} 20. O-O-O {[%clk 0:01:49.3]} 20... Kd6 {[%clk 0:00:41]} 21.
f3 {[%clk 0:01:43.3]} 21... Re3 {[%clk 0:00:32.9]} 22. Bd3 {[%clk 0:01:29]}
22... Nb3+ {[%clk 0:00:32]} 23. Kc2 {[%clk 0:01:26]} 23... Nxd4+ {[%clk
0:00:32.2]} 24. Kd2 {[%clk 0:01:25.7]} 24... Re8 {[%clk 0:00:29.9]} 25. Kc3
{[%clk 0:01:24.9]} 25... Kc5 {[%clk 0:00:28]} 26. Nb4 {[%clk 0:01:19.7]} 26...
Bb7 {[%clk 0:00:24.8]} 27. Rhe1 {[%clk 0:01:03.1]} 27... a5 {[%clk 0:00:19.5]}
28. Nc2 {[%clk 0:00:55.2]} 28... Nxc2 {[%clk 0:00:16.6]} 29. Rxe8 {[%clk
0:00:53.5]} 29... Nxe8 {[%clk 0:00:15.3]} 30. Bxc2 {[%clk 0:00:53.7]} 30... Nf6
{[%clk 0:00:14.4]} 31. Re1 {[%clk 0:00:46.1]} 31... Kd6 {[%clk 0:00:12.4]} 32.
Rd1+ {[%clk 0:00:38.8]} 32... Ke7 {[%clk 0:00:12]} 33. Rb1 {[%clk 0:00:38.5]}
33... Bc6 {[%clk 0:00:10.2]} 34. Rxb6 {[%clk 0:00:37.4]} 34... Nh5 {[%clk
0:00:09.9]} 35. Be4 {[%clk 0:00:26.5]} 35... Ba4 {[%clk 0:00:05.6]} 36. g3
{[%clk 0:00:23.2]} 36... Nf6 {[%clk 0:00:04.2]} 37. Bc2 {[%clk 0:00:18.9]} 37...
Bc6 {[%clk 0:00:03.7]} 38. Bd1 {[%clk 0:00:19.2]} 38... Kd6 {[%clk 0:00:02.5]}
39. Ra6 {[%clk 0:00:19.3]} 39... Kc5 {[%clk 0:00:02.8]} 40. Rxa5+ {[%clk
0:00:18.8]} 40... Kb6 {[%clk 0:00:03.4]} 41. Rg5 {[%clk 0:00:18.5]} 41... g6
{[%clk 0:00:03.4]} 42. Re5 {[%clk 0:00:19.1]} 42... Ng8 {[%clk 0:00:03.4]} 43.
Re7 {[%clk 0:00:19.6]} 43... Nxe7 {[%clk 0:00:03.4]} 44. Kd4 {[%clk 0:00:20]}
44... Nc8 {[%clk 0:00:04.3]} 45. Ke5 {[%clk 0:00:20]} 45... Ne7 {[%clk 0:00:05]}
46. Kf6 {[%clk 0:00:20]} 46... Nc8 {[%clk 0:00:05.9]} 47. Kxf7 {[%clk
0:00:20.3]} 47... Kc5 {[%clk 0:00:06.5]} 48. Be2 {[%clk 0:00:20]} 48... Bb7
{[%clk 0:00:06.1]} 49. Kg7 {[%clk 0:00:20.2]} 49... Nd6 {[%clk 0:00:06.1]} 50.
Kxh7 {[%clk 0:00:20.3]} 50... Nxc4 {[%clk 0:00:06.7]} 51. Kxg6 {[%clk
0:00:19.1]} 51... d5 {[%clk 0:00:07]} 52. h4 {[%clk 0:00:18.8]} 52... d4 {[%clk
0:00:07.5]} 53. h5 {[%clk 0:00:19.1]} 53... Ne5+ {[%clk 0:00:07.3]} 54. Kf5
{[%clk 0:00:19.3]} 54... Nxf3 {[%clk 0:00:06.3]} 55. h6 {[%clk 0:00:17.3]} 55...
Bd5 {[%clk 0:00:02.6]} 56. h7 {[%clk 0:00:16.7]} 56... Be4+ {[%clk 0:00:02.8]}
57. Kxe4 {[%clk 0:00:16.1]} 57... Ng5+ {[%clk 0:00:03.7]} 58. Kf5 {[%clk
0:00:15.4]} 58... Nxh7 {[%clk 0:00:04.6]} 59. Bd3 {[%clk 0:00:15.1]} 59... Nf8
{[%clk 0:00:04.9]} 60. g4 {[%clk 0:00:14.3]} 60... Kb4 {[%clk 0:00:04.5]} 61. g5
{[%clk 0:00:11.9]} 61... Kc3 {[%clk 0:00:04.8]} 62. Be4 {[%clk 0:00:05.2]} 62...
d3 {[%clk 0:00:04.6]} 63. Bf3 {[%clk 0:00:05.1]} 63... d2 {[%clk 0:00:04]} 64.
Kf6 {[%clk 0:00:05.5]} 64... Kc2 {[%clk 0:00:04]} 65. Kf7 {[%clk 0:00:04.8]}
65... Nd7 {[%clk 0:00:04.5]} 66. Ke6 {[%clk 0:00:04]} 66... Nf8+ {[%clk
0:00:04.3]} 67. Kf5 {[%clk 0:00:04.2]} 67... d1=Q {[%clk 0:00:03.6]} 68. Bxd1+
{[%clk 0:00:04.8]} 68... Kxd1 {[%clk 0:00:04.5]} 69. Kf6 {[%clk 0:00:05.3]}
69... Nd7+ {[%clk 0:00:04.4]} 70. Kf7 {[%clk 0:00:04.5]} 70... Ke2 {[%clk
0:00:03.7]} 71. Ke6 {[%clk 0:00:03.8]} 71... Nf8+ {[%clk 0:00:03.9]} 72. Kf7
{[%clk 0:00:04.5]} 72... Nd7 {[%clk 0:00:04]} 73. Kg7 {[%clk 0:00:03.7]} 73...
Kf3 {[%clk 0:00:03.7]} 74. g6 {[%clk 0:00:04.1]} 74... Ne5 {[%clk 0:00:03.4]}
75. Kf6 {[%clk 0:00:03.7]} 75... Nxg6 {[%clk 0:00:04.3]} 1/2-1/2

[Event "*** SCC Grand Prix: Titled Tuesday Blitz"]
[Site "Chess.com"]
[Date "2020.08.25"]
[Round "7"]
[White "1977Ivan"]
[Black "Dinamo3"]
[Result "1-0"]
[WhiteElo "2694"]
[BlackElo "2484"]
[TimeControl "180+1"]
[EndTime "11:21:30 PDT"]
[Termination "1977Ivan won on time"]

1. c4 {[%clk 0:03:00.9]} 1... f5 {[%clk 0:02:59.2]} 2. Nc3 {[%clk 0:02:59.2]}
2... Nf6 {[%clk 0:02:59.5]} 3. d4 {[%clk 0:02:59.7]} 3... d6 {[%clk 0:02:58.9]}
4. Bg5 {[%clk 0:02:58.3]} 4... e6 {[%clk 0:02:46]} 5. e4 {[%clk 0:02:42.7]} 5...
fxe4 {[%clk 0:02:44.2]} 6. Nxe4 {[%clk 0:02:15]} 6... Be7 {[%clk 0:02:43.5]} 7.
Bxf6 {[%clk 0:02:14.2]} 7... Bxf6 {[%clk 0:02:43.5]} 8. Qh5+ {[%clk 0:02:04.6]}
8... g6 {[%clk 0:02:42.3]} 9. Qh6 {[%clk 0:02:03.1]} 9... Nc6 {[%clk 0:02:41.1]}
10. Nf3 {[%clk 0:01:19.9]} 10... Qe7 {[%clk 0:02:28]} 11. O-O-O {[%clk
0:01:16.4]} 11... Bg7 {[%clk 0:02:27.4]} 12. Qe3 {[%clk 0:01:15.3]} 12... Bd7
{[%clk 0:02:25.3]} 13. h4 {[%clk 0:01:12.8]} 13... e5 {[%clk 0:02:19.6]} 14.
dxe5 {[%clk 0:01:07.7]} 14... Nxe5 {[%clk 0:02:19.5]} 15. c5 {[%clk 0:00:59.3]}
15... d5 {[%clk 0:01:51.3]} 16. Rxd5 {[%clk 0:00:52.7]} 16... Bc6 {[%clk
0:01:51.6]} 17. Rxe5 {[%clk 0:00:47.4]} 17... Bxe5 {[%clk 0:01:51.1]} 18. Nxe5
{[%clk 0:00:48.3]} 18... Bxe4 {[%clk 0:01:03.4]} 19. Qxe4 {[%clk 0:00:46.4]}
19... Qxc5+ {[%clk 0:01:02.1]} 20. Bc4 {[%clk 0:00:44.6]} 20... O-O-O {[%clk
0:00:58.1]} 21. Kb1 {[%clk 0:00:30.1]} 21... Rhe8 {[%clk 0:00:55.9]} 22. Qg4+
{[%clk 0:00:20.4]} 22... Kb8 {[%clk 0:00:43.8]} 23. Nd7+ {[%clk 0:00:20.7]}
23... Rxd7 {[%clk 0:00:44.3]} 24. Qxd7 {[%clk 0:00:21.1]} 24... Rf8 {[%clk
0:00:40.3]} 25. Bb3 {[%clk 0:00:20.3]} 25... a6 {[%clk 0:00:37.6]} 26. Rc1
{[%clk 0:00:20]} 26... Qb6 {[%clk 0:00:32.6]} 27. f3 {[%clk 0:00:20.2]} 27... h5
{[%clk 0:00:28.1]} 28. Qe7 {[%clk 0:00:19.6]} 28... Rf4 {[%clk 0:00:25.3]} 29.
Qc5 {[%clk 0:00:16.8]} 29... Qxc5 {[%clk 0:00:22.6]} 30. Rxc5 {[%clk 0:00:16.7]}
30... Rxh4 {[%clk 0:00:23.5]} 31. Rg5 {[%clk 0:00:17]} 31... Rh1+ {[%clk
0:00:07.9]} 32. Kc2 {[%clk 0:00:15.7]} 32... h4 {[%clk 0:00:08.8]} 33. Rxg6
{[%clk 0:00:15.8]} 33... Rg1 {[%clk 0:00:07.7]} 34. Rg4 {[%clk 0:00:14.4]} 34...
Rh1 {[%clk 0:00:06.7]} 35. Kc3 {[%clk 0:00:14.3]} 35... b5 {[%clk 0:00:06.7]}
36. Bd5 {[%clk 0:00:13.7]} 36... Ka7 {[%clk 0:00:06.9]} 37. Be4 {[%clk
0:00:13.6]} 37... Kb6 {[%clk 0:00:06.5]} 38. b4 {[%clk 0:00:13.7]} 38... Rc1+
{[%clk 0:00:04]} 39. Kd2 {[%clk 0:00:12.8]} 39... Rh1 {[%clk 0:00:04.9]} 40.
Rg6+ {[%clk 0:00:12.9]} 40... Ka7 {[%clk 0:00:05.1]} 41. Kc3 {[%clk 0:00:12.4]}
41... h3 {[%clk 0:00:03.5]} 42. gxh3 {[%clk 0:00:11.6]} 42... Rxh3 {[%clk
0:00:04.4]} 43. Kd4 {[%clk 0:00:11.8]} 43... Rh2 {[%clk 0:00:03.8]} 44. Rg7
{[%clk 0:00:10.8]} 44... Rxa2 {[%clk 0:00:02.8]} 45. Rxc7+ {[%clk 0:00:10.2]}
45... Kb8 {[%clk 0:00:03.7]} 46. Rb7+ {[%clk 0:00:09.6]} 46... Kc8 {[%clk
0:00:04.4]} 47. Kc5 {[%clk 0:00:09.2]} 47... Ra3 {[%clk 0:00:04.4]} 48. Kb6
{[%clk 0:00:08.8]} 48... Rb3 {[%clk 0:00:04.2]} 49. Rc7+ {[%clk 0:00:07.4]}
49... Kd8 {[%clk 0:00:04.3]} 50. Ra7 {[%clk 0:00:05.1]} 50... Rxb4 {[%clk
0:00:04.4]} 51. Rxa6 {[%clk 0:00:05.6]} 51... Rb2 {[%clk 0:00:05]} 52. Ra5
{[%clk 0:00:05.8]} 52... b4 {[%clk 0:00:05.5]} 53. Rb5 {[%clk 0:00:06.3]} 53...
Ke7 {[%clk 0:00:05.6]} 54. Kc5 {[%clk 0:00:04.7]} 54... b3 {[%clk 0:00:06]} 55.
Kc4 {[%clk 0:00:05.4]} 55... Kd6 {[%clk 0:00:06.2]} 56. Rxb3 {[%clk 0:00:05.2]}
56... Rh2 {[%clk 0:00:07.1]} 57. Kd4 {[%clk 0:00:05.4]} 57... Ke6 {[%clk
0:00:07.4]} 58. Rd3 {[%clk 0:00:06.2]} 58... Ra2 {[%clk 0:00:06.5]} 59. Ke3
{[%clk 0:00:07.1]} 59... Ra4 {[%clk 0:00:06.6]} 60. f4 {[%clk 0:00:07.4]} 60...
Kf6 {[%clk 0:00:07.4]} 61. Rd6+ {[%clk 0:00:07.2]} 61... Ke7 {[%clk 0:00:07.5]}
62. Rh6 {[%clk 0:00:07.3]} 62... Ra3+ {[%clk 0:00:07.8]} 63. Bd3 {[%clk
0:00:08.2]} 63... Ra5 {[%clk 0:00:07.8]} 64. f5 {[%clk 0:00:08.5]} 64... Kf7
{[%clk 0:00:08.3]} 65. Kf4 {[%clk 0:00:08.7]} 65... Kg7 {[%clk 0:00:08.7]} 66.
Rg6+ {[%clk 0:00:09.6]} 66... Kf7 {[%clk 0:00:08]} 67. Be4 {[%clk 0:00:10.5]}
67... Ra7 {[%clk 0:00:07.9]} 68. Re6 {[%clk 0:00:10.6]} 68... Kf8 {[%clk
0:00:08.3]} 69. Bd5 {[%clk 0:00:11]} 69... Kg7 {[%clk 0:00:08.5]} 70. Ke5 {[%clk
0:00:11.7]} 70... Ra1 {[%clk 0:00:08.5]} 71. f6+ {[%clk 0:00:12.6]} 71... Kh8
{[%clk 0:00:08.9]} 72. Re7 {[%clk 0:00:12.7]} 72... Re1+ {[%clk 0:00:08.9]} 73.
Kd6 {[%clk 0:00:12.8]} 73... Rf1 {[%clk 0:00:09.2]} 74. f7 {[%clk 0:00:12.5]}
74... Kg7 {[%clk 0:00:09.7]} 75. Re8 {[%clk 0:00:12.7]} 75... Rf6+ {[%clk
0:00:06.4]} 76. Ke7 {[%clk 0:00:12.2]} 1-0

[Event "*** SCC Grand Prix: Titled Tuesday Blitz"]
[Site "Chess.com"]
[Date "2020.08.25"]
[Round "7"]
[White "WPWPWP-2015"]
[Black "Evgeny81"]
[Result "1-0"]
[WhiteElo "2494"]
[BlackElo "2675"]
[TimeControl "180+1"]
[EndTime "11:21:36 PDT"]
[Termination "WPWPWP-2015 won by checkmate"]

1. e4 {[%clk 0:03:00.9]} 1... c5 {[%clk 0:02:58.7]} 2. Nf3 {[%clk 0:02:59.8]}
2... Nc6 {[%clk 0:02:58.2]} 3. Bb5 {[%clk 0:02:59.1]} 3... e6 {[%clk 0:02:57.5]}
4. b3 {[%clk 0:02:53.1]} 4... Nge7 {[%clk 0:02:55.9]} 5. Bb2 {[%clk 0:02:52.1]}
5... a6 {[%clk 0:02:55.4]} 6. Bxc6 {[%clk 0:02:51.6]} 6... Nxc6 {[%clk
0:02:56.3]} 7. O-O {[%clk 0:02:50.7]} 7... d6 {[%clk 0:02:55.2]} 8. d4 {[%clk
0:02:46.2]} 8... cxd4 {[%clk 0:02:55.2]} 9. Nxd4 {[%clk 0:02:45.6]} 9... Bd7
{[%clk 0:02:48.8]} 10. Nd2 {[%clk 0:02:42.7]} 10... Qc7 {[%clk 0:02:48]} 11. Re1
{[%clk 0:02:24.8]} 11... Rc8 {[%clk 0:02:46.7]} 12. c4 {[%clk 0:02:21.7]} 12...
Ne5 {[%clk 0:02:45.3]} 13. N2f3 {[%clk 0:02:17.1]} 13... Be7 {[%clk 0:02:43.4]}
14. Nxe5 {[%clk 0:02:13.7]} 14... dxe5 {[%clk 0:02:43.2]} 15. Nf3 {[%clk
0:02:12.6]} 15... f6 {[%clk 0:02:40.7]} 16. Qc1 {[%clk 0:01:44.3]} 16... b5
{[%clk 0:02:25]} 17. Ba3 {[%clk 0:01:26.9]} 17... bxc4 {[%clk 0:02:15.6]} 18.
Bxe7 {[%clk 0:01:25.4]} 18... Kxe7 {[%clk 0:02:16.5]} 19. Rd1 {[%clk 0:01:22.3]}
19... c3 {[%clk 0:02:00.5]} 20. Qa3+ {[%clk 0:01:21.7]} 20... Qc5 {[%clk
0:01:56.7]} 21. b4 {[%clk 0:01:19.4]} 21... Qc4 {[%clk 0:01:44.2]} 22. Rac1
{[%clk 0:00:58.7]} 22... Bb5 {[%clk 0:01:41.1]} 23. Nd2 {[%clk 0:00:48.6]} 23...
Qe2 {[%clk 0:01:18.1]} 24. Nb3 {[%clk 0:00:48.3]} 24... Rhd8 {[%clk 0:00:57.8]}
25. Re1 {[%clk 0:00:40.9]} 25... Qb2 {[%clk 0:00:56.6]} 26. Qa5 {[%clk
0:00:27.9]} 26... Rd2 {[%clk 0:00:47.1]} 27. Nxd2 {[%clk 0:00:16.2]} 27... cxd2
{[%clk 0:00:40.8]} 28. Rc7+ {[%clk 0:00:15.8]} 28... Rxc7 {[%clk 0:00:11.7]} 29.
Qxc7+ {[%clk 0:00:15.2]} 29... Kf8 {[%clk 0:00:09.7]} 30. Rd1 {[%clk 0:00:12.7]}
30... Qxb4 {[%clk 0:00:08.5]} 31. Qd8+ {[%clk 0:00:11.3]} 31... Kf7 {[%clk
0:00:08.9]} 32. Qxd2 {[%clk 0:00:10]} 32... Qxe4 {[%clk 0:00:09.4]} 33. f3
{[%clk 0:00:09.4]} 33... Qc4 {[%clk 0:00:08.9]} 34. Rc1 {[%clk 0:00:09.5]} 34...
Qd4+ {[%clk 0:00:08.3]} 35. Qxd4 {[%clk 0:00:08.7]} 35... exd4 {[%clk
0:00:09.2]} 36. Rc7+ {[%clk 0:00:08]} 36... Kg6 {[%clk 0:00:09.3]} 37. Kf2
{[%clk 0:00:07.4]} 37... e5 {[%clk 0:00:09.4]} 38. Ra7 {[%clk 0:00:04.4]} 38...
f5 {[%clk 0:00:08.3]} 39. a4 {[%clk 0:00:03.8]} 39... Bc4 {[%clk 0:00:08.4]} 40.
Rc7 {[%clk 0:00:03.4]} 40... Bd3 {[%clk 0:00:08.3]} 41. Rc6+ {[%clk 0:00:03.1]}
41... Kg5 {[%clk 0:00:08.2]} 42. Rc5 {[%clk 0:00:02.2]} 42... Kf6 {[%clk
0:00:05.9]} 43. Rc6+ {[%clk 0:00:02.4]} 43... Kf7 {[%clk 0:00:06]} 44. Rd6
{[%clk 0:00:01.9]} 44... Ke7 {[%clk 0:00:05.3]} 45. Rb6 {[%clk 0:00:02.2]} 45...
g5 {[%clk 0:00:04.9]} 46. g3 {[%clk 0:00:02.3]} 46... h5 {[%clk 0:00:04.7]} 47.
f4 {[%clk 0:00:02]} 47... gxf4 {[%clk 0:00:04.2]} 48. gxf4 {[%clk 0:00:02.3]}
48... e4 {[%clk 0:00:03.3]} 49. Rb4 {[%clk 0:00:02.4]} 49... Ke6 {[%clk
0:00:02.9]} 50. Rxd4 {[%clk 0:00:01.9]} 50... Bc2 {[%clk 0:00:03.5]} 51. Rb4
{[%clk 0:00:02.4]} 51... Kd5 {[%clk 0:00:02.3]} 52. Ke3 {[%clk 0:00:02.7]} 52...
Bd3 {[%clk 0:00:01.9]} 53. Rb8 {[%clk 0:00:02.8]} 53... Kc5 {[%clk 0:00:02.4]}
54. Rb7 {[%clk 0:00:02.1]} 54... Kc6 {[%clk 0:00:02.5]} 55. Rb8 {[%clk 0:00:03]}
55... Kc5 {[%clk 0:00:03.3]} 56. a5 {[%clk 0:00:03.5]} 56... Bb5 {[%clk
0:00:02.4]} 57. Rb6 {[%clk 0:00:04.4]} 57... Kb4 {[%clk 0:00:02.4]} 58. Kd2
{[%clk 0:00:04.9]} 58... Kxa5 {[%clk 0:00:02.9]} 59. Rf6 {[%clk 0:00:04.4]}
59... Kb4 {[%clk 0:00:03.5]} 60. Rxf5 {[%clk 0:00:04.7]} 60... a5 {[%clk
0:00:04.1]} 61. Re5 {[%clk 0:00:05]} 61... Bd3 {[%clk 0:00:03.1]} 62. f5 {[%clk
0:00:04.9]} 62... a4 {[%clk 0:00:03.7]} 63. Re8 {[%clk 0:00:04.4]} 63... a3
{[%clk 0:00:03.8]} 64. Rb8+ {[%clk 0:00:04.1]} 64... Bb5 {[%clk 0:00:03.7]} 65.
Ra8 {[%clk 0:00:03.8]} 65... Ba4 {[%clk 0:00:03.8]} 66. f6 {[%clk 0:00:03.2]}
66... a2 {[%clk 0:00:03.8]} 67. f7 {[%clk 0:00:03.5]} 67... a1=Q {[%clk
0:00:03.8]} 68. f8=Q+ {[%clk 0:00:03.5]} 68... Kb3 {[%clk 0:00:04.1]} 69. Rb8+
{[%clk 0:00:03.2]} 69... Ka2 {[%clk 0:00:04.4]} 70. Qf7+ {[%clk 0:00:03]} 70...
Ka3 {[%clk 0:00:04.8]} 71. Qe7+ {[%clk 0:00:03.4]} 71... Ka2 {[%clk 0:00:05.2]}
72. Qe6+ {[%clk 0:00:03.6]} 72... Ka3 {[%clk 0:00:05.8]} 73. Qd6+ {[%clk
0:00:03.9]} 73... Ka2 {[%clk 0:00:06.4]} 74. Qd5+ {[%clk 0:00:04.1]} 74... Ka3
{[%clk 0:00:07]} 75. Qc5+ {[%clk 0:00:04.2]} 75... Ka2 {[%clk 0:00:07.5]} 76.
Qc4+ {[%clk 0:00:04.3]} 76... Ka3 {[%clk 0:00:08.1]} 77. Qb4+ {[%clk 0:00:04.3]}
77... Ka2 {[%clk 0:00:08.1]} 78. Qxa4# {[%clk 0:00:04.5]} 1-0

[Event "*** SCC Grand Prix: Titled Tuesday Blitz"]
[Site "Chess.com"]
[Date "2020.08.25"]
[Round "7"]
[White "SzMM19"]
[Black "garicradomir"]
[Result "0-1"]
[WhiteElo "2519"]
[BlackElo "2322"]
[TimeControl "180+1"]
[EndTime "11:21:36 PDT"]
[Termination "garicradomir won by checkmate"]

1. e4 {[%clk 0:02:50.4]} 1... g6 {[%clk 0:02:59.7]} 2. c4 {[%clk 0:02:50]} 2...
Nf6 {[%clk 0:02:53.9]} 3. Nc3 {[%clk 0:02:50]} 3... c6 {[%clk 0:02:48.7]} 4. e5
{[%clk 0:02:45.7]} 4... Nh5 {[%clk 0:02:46.2]} 5. d4 {[%clk 0:02:44.9]} 5... d6
{[%clk 0:02:44.6]} 6. exd6 {[%clk 0:02:44.6]} 6... exd6 {[%clk 0:02:41.4]} 7.
Be2 {[%clk 0:02:44.7]} 7... Nf6 {[%clk 0:02:32.1]} 8. Nf3 {[%clk 0:02:44.4]}
8... Bg7 {[%clk 0:02:32.1]} 9. O-O {[%clk 0:02:44.3]} 9... O-O {[%clk
0:02:31.9]} 10. Re1 {[%clk 0:02:39.6]} 10... Bg4 {[%clk 0:02:28.4]} 11. h3
{[%clk 0:02:38.9]} 11... Bxf3 {[%clk 0:02:28.4]} 12. Bxf3 {[%clk 0:02:39.8]}
12... Na6 {[%clk 0:02:28.7]} 13. Bf4 {[%clk 0:02:37.8]} 13... Qd7 {[%clk
0:02:19.2]} 14. Qb3 {[%clk 0:02:24.1]} 14... Rfe8 {[%clk 0:02:13.6]} 15. Kf1
{[%clk 0:02:14.5]} 15... h6 {[%clk 0:01:58.3]} 16. Qa3 {[%clk 0:02:12.5]} 16...
c5 {[%clk 0:01:50.3]} 17. d5 {[%clk 0:01:57.9]} 17... Nb4 {[%clk 0:01:45.4]} 18.
Rxe8+ {[%clk 0:01:33.3]} 18... Rxe8 {[%clk 0:01:42.6]} 19. Qb3 {[%clk
0:01:34.2]} 19... Qf5 {[%clk 0:01:36.2]} 20. Bg3 {[%clk 0:01:09.3]} 20... Nc2
{[%clk 0:01:24.5]} 21. Rc1 {[%clk 0:01:07]} 21... Nd4 {[%clk 0:01:24.3]} 22. Qd1
{[%clk 0:01:07.4]} 22... Bf8 {[%clk 0:01:05.9]} 23. a3 {[%clk 0:01:06.8]} 23...
h5 {[%clk 0:00:49.3]} 24. h4 {[%clk 0:01:03.3]} 24... Bh6 {[%clk 0:00:47.3]} 25.
Ra1 {[%clk 0:00:57.9]} 25... Bf4 {[%clk 0:00:47.2]} 26. Kg1 {[%clk 0:00:24.3]}
26... Bxg3 {[%clk 0:00:46.1]} 27. fxg3 {[%clk 0:00:25.2]} 27... Ng4 {[%clk
0:00:41.9]} 28. Bxg4 {[%clk 0:00:22.1]} 28... hxg4 {[%clk 0:00:42.8]} 29. Qd2
{[%clk 0:00:20.5]} 29... Qe5 {[%clk 0:00:33.6]} 30. Rf1 {[%clk 0:00:17.3]} 30...
Qxg3 {[%clk 0:00:32.5]} 31. h5 {[%clk 0:00:15.9]} 31... gxh5 {[%clk 0:00:27]}
32. Qg5+ {[%clk 0:00:14.5]} 32... Kf8 {[%clk 0:00:25.3]} 33. Qh6+ {[%clk
0:00:13.4]} 33... Ke7 {[%clk 0:00:24.7]} 34. Qg5+ {[%clk 0:00:10.1]} 34... Kd7
{[%clk 0:00:23.7]} 35. Qxh5 {[%clk 0:00:05.9]} 35... Qe3+ {[%clk 0:00:20.8]} 36.
Kh1 {[%clk 0:00:05.2]} 36... Qe5 {[%clk 0:00:16.9]} 37. Rxf7+ {[%clk 0:00:04.1]}
37... Kd8 {[%clk 0:00:15.7]} 38. Qxg4 {[%clk 0:00:03.6]} 38... Qe1+ {[%clk
0:00:13.2]} 39. Kh2 {[%clk 0:00:03.3]} 39... Rh8+ {[%clk 0:00:13]} 40. Qh3
{[%clk 0:00:03.2]} 40... Rxh3+ {[%clk 0:00:12.5]} 41. Kxh3 {[%clk 0:00:04.1]}
41... Qe5 {[%clk 0:00:09.4]} 42. Rf8+ {[%clk 0:00:03.8]} 42... Ke7 {[%clk
0:00:09.1]} 43. Rf1 {[%clk 0:00:03.6]} 43... Qh5+ {[%clk 0:00:08.4]} 44. Kg3
{[%clk 0:00:03.7]} 44... Nf5+ {[%clk 0:00:08.3]} 45. Kf4 {[%clk 0:00:04]} 45...
Nh4 {[%clk 0:00:07.6]} 46. Re1+ {[%clk 0:00:04.1]} 46... Kd7 {[%clk 0:00:06.8]}
47. g4 {[%clk 0:00:05]} 47... Qg6 {[%clk 0:00:05.2]} 48. Rh1 {[%clk 0:00:04]}
48... Qf6+ {[%clk 0:00:03.7]} 49. Kg3 {[%clk 0:00:04.1]} 49... Qf3+ {[%clk
0:00:03.7]} 50. Kxh4 {[%clk 0:00:03.4]} 50... Qxh1+ {[%clk 0:00:03.8]} 51. Kg5
{[%clk 0:00:04.3]} 51... Qc1+ {[%clk 0:00:03.4]} 52. Kf5 {[%clk 0:00:03.2]}
52... Qxb2 {[%clk 0:00:03.7]} 53. Ne4 {[%clk 0:00:04.1]} 53... Qc2 {[%clk
0:00:03.8]} 54. Kf4 {[%clk 0:00:05]} 54... Qxc4 {[%clk 0:00:03.3]} 55. g5 {[%clk
0:00:05.8]} 55... Qxe4+ {[%clk 0:00:03.7]} 56. Kxe4 {[%clk 0:00:06]} 56... b5
{[%clk 0:00:04.1]} 57. g6 {[%clk 0:00:04.9]} 57... Ke7 {[%clk 0:00:04.2]} 58.
Kf5 {[%clk 0:00:05.5]} 58... c4 {[%clk 0:00:03.4]} 59. g7 {[%clk 0:00:03.4]}
59... Kf7 {[%clk 0:00:03.3]} 60. g8=Q+ {[%clk 0:00:04.3]} 60... Kxg8 {[%clk
0:00:03.4]} 61. Ke6 {[%clk 0:00:05.2]} 61... c3 {[%clk 0:00:04.3]} 62. Kxd6
{[%clk 0:00:06.1]} 62... c2 {[%clk 0:00:04.7]} 63. Ke7 {[%clk 0:00:07]} 63...
c1=Q {[%clk 0:00:05.6]} 64. d6 {[%clk 0:00:07.9]} 64... Qxa3 {[%clk 0:00:05.3]}
65. Ke6 {[%clk 0:00:07.9]} 65... Qxd6+ {[%clk 0:00:05.5]} 66. Kxd6 {[%clk
0:00:08.8]} 66... b4 {[%clk 0:00:06.4]} 67. Kd5 {[%clk 0:00:09.3]} 67... b3
{[%clk 0:00:07.3]} 68. Kd4 {[%clk 0:00:10.2]} 68... b2 {[%clk 0:00:08.2]} 69.
Ke3 {[%clk 0:00:11.1]} 69... b1=Q {[%clk 0:00:08.4]} 70. Ke2 {[%clk 0:00:12]}
70... a6 {[%clk 0:00:08.8]} 71. Kf3 {[%clk 0:00:12.9]} 71... a5 {[%clk
0:00:09.4]} 72. Kg2 {[%clk 0:00:13.8]} 72... a4 {[%clk 0:00:10.3]} 73. Kh3
{[%clk 0:00:14.7]} 73... a3 {[%clk 0:00:11.2]} 74. Kh4 {[%clk 0:00:09.3]} 74...
a2 {[%clk 0:00:12.1]} 75. Kg5 {[%clk 0:00:09.6]} 75... a1=Q {[%clk 0:00:11.3]}
76. Kh6 {[%clk 0:00:10.5]} 76... Qb6+ {[%clk 0:00:07.7]} 77. Kg5 {[%clk
0:00:11.4]} 77... Qaa5+ {[%clk 0:00:07.6]} 78. Kg4 {[%clk 0:00:11.7]} 78...
Qbb4+ {[%clk 0:00:08.5]} 79. Kf3 {[%clk 0:00:12.6]} 79... Qaa3+ {[%clk
0:00:08.4]} 80. Kf2 {[%clk 0:00:13.4]} 80... Qbb2+ {[%clk 0:00:08.4]} 81. Kf1
{[%clk 0:00:14.3]} 81... Qaa1# {[%clk 0:00:09.1]} 0-1